lending/lending_fUSD_20240510
["ID","MTS","AMOUNT","RATE_DAILY","PERIOD"]
[326772439,1715344237962,-155.10961967,0.00021777,2]
[326772440,1715344237970,-178.37516632,0.00021823,2]
[326772441,1715344237979,-155.05417632,0.0002183,2]
[326772442,1715344237988,-6765.16526746,0.000219,2]
[326772443,1715344237998,-2000.0,0.00021918,2]
[326772444,1715344238007,-250.0,0.00021918,2]
[326772445,1715344238016,-499.68290399,0.00022049,2]
[326772446,1715344238025,-156.43559606,0.00022103,2]
[326772448,1715344238035,-153.90953064,0.00022257,2]
[326772450,1715344238043,-328.0,0.00022502,2]
[326772452,1715344238052,-178.37516632,0.00022538,2]
[326772454,1715344238062,-1197.90306,0.00022628,2]
[326772456,1715344238071,-178.37516632,0.00022649,2]
[326772458,1715344238080,-150.69943881,0.00022846,2]
[326772460,1715344238089,-178.37516632,0.00023062,2]
[326772462,1715344238098,-672.0,0.00023119,2]
[326772464,1715344238107,-499.68290399,0.00023197,2]
[326772466,1715344238116,-165.30353314,0.00023222,2]
[326772468,1715344238125,-155.05417632,0.0002332,2]
[326772469,1715344238134,-2001.32534763,0.000234,2]
[326772472,1715344238143,-153.90953064,0.00023578,2]
[326772473,1715344238152,-161.22097225,0.00023731,2]
[326772475,1715344238161,-2023.83,0.00023836,3]
[326772478,1715344238171,-1000.0,0.00024,4]
[326772480,1715344238179,-1008.0,0.00024,4]
[326772482,1715344238189,-1072.80775125,0.00024,2]
[326772484,1715344238199,-432.59885389,0.00024,2]
[326772486,1715344238208,-150.69943881,0.00024071,2]
[326772488,1715344238216,-180.0,0.0002423,2]
[326772490,1715344238225,-499.68290399,0.00024346,2]
[326772492,1715344238234,-155.05417632,0.00024436,2]
[326772494,1715344238243,-161.22097225,0.00024554,2]
[326772496,1715344238252,-155.05417632,0.00024573,2]
[326772498,1715344238261,-250.0,0.00024658,2]
[326772499,1715344238269,-328.0,0.00024753,2]
[326772502,1715344238279,-288.0,0.00024864,2]
[326772503,1715344238289,-1240.492,0.00024864,2]
[326772505,1715344238298,-3217.474,0.00024864,2]
[326772507,1715344238307,-1227.0,0.00024864,2]
[326772509,1715344238316,-1260.0,0.00024864,2]
[326772511,1715344238325,-297.961,0.00024864,2]
[326772513,1715344238334,-542.0,0.00024864,2]
[326772515,1715344238343,-1059.0,0.00024864,2]
[326772517,1715344238352,-178.37516632,0.00024888,2]
[326772519,1715344238361,-9144.88180711,0.0002499,2]
[326772521,1715344238370,-1000.0,0.00025,2]
[326772523,1715344238379,-925.8669637,0.00025,2]
[326772525,1715344238388,-1030.0,0.00025,4]
[326772527,1715344238397,-1000.0,0.00025,4]
[326772529,1715344238405,-1000.0,0.00025,4]
[326772531,1715344238415,-1000.0,0.00025,4]
[326772532,1715344238424,-1000.0,0.00025,5]
[326772534,1715344238433,-1000.0,0.00025,5]
[326772536,1715344238442,-300.0,0.00025,2]
[326772538,1715344238451,-155.0,0.00025,2]
[326772540,1715344238460,-2219.93951707,0.00025,2]
[326772542,1715344238470,-155.0,0.00025,2]
[326772544,1715344238479,-471.94368644,0.00025,2]
[326772546,1715344238488,-155.0,0.00025,2]
[326772549,1715344238498,-664.79871901,0.00025,2]
[326772550,1715344238509,-1000.0,0.00025,2]
[326772551,1715344238518,-300.0,0.00025003,2]
[326772552,1715344238527,-300.0,0.00025003,2]
[326772553,1715344238539,-155.05417632,0.00025179,2]
[326772554,1715344238547,-150.69943881,0.00025297,2]
[326772555,1715344238556,-150.0,0.00025404,2]
[326772556,1715344238565,-672.0,0.00025431,2]
[326772557,1715344238574,-499.68290399,0.00025495,2]
[326772558,1715344238583,-150.0,0.00025567,2]
[326772559,1715344238592,-178.0,0.00025567,2]
[326772561,1715344238602,-3301.49089919,0.00025597,2]
[326772563,1715344238611,-155.0,0.00025597,2]
[326772565,1715344238620,-1318.15024007,0.00025597,2]
[326772567,1715344238629,-217.04403683,0.00025598,2]
[326772569,1715344238638,-162.33624295,0.00025598,2]
[326772571,1715344238647,-265.79723755,0.00025599,2]
[326772572,1715344238656,-241.23184144,0.00025599,2]
[326772574,1715344238665,-10479.49507197,0.000256,2]
[326772575,1715344238674,-156.43559606,0.00025781,2]
[326772576,1715344238685,-398.13914006,0.00025799,2]
[326772578,1715344239506,-631.67417541,0.00025799,2]
[326772579,1715344239519,-2143.77423767,0.00025799,2]
[326772581,1715344239534,-3690.942091,0.00025799,2]
[326772582,1715344239559,-311.184893,0.00025799,2]
[326772584,1715344239571,-1641.02539894,0.00025799,2]
[326772587,1715344239583,-13073.40910381,0.00025799,2]
[326772589,1715344239595,-769.96443153,0.00025799,2]
[326772593,1715344239630,-22471.96126673,0.00025799,2]
[326772596,1715344239642,-5500.0,0.00025799,2]
[326772598,1715344239675,-25694.5146722,0.00025799,2]
[326772599,1715344239685,-1000.0,0.000258,2]
[326772600,1715344239695,-1000.0,0.000259,2]
[326772601,1715344239708,-70298.75161917,0.000259,7]
[326772602,1715344239720,-11940.0,0.000259,7]
[326772603,1715344239770,-3027.89608,0.000259,7]
[326772604,1715344239814,-29212.73257831,0.000259,7]
[326772605,1715344239833,-335.26623741,0.000259,7]
[326772642,1715344241928,-119522.90161647,0.000259,7]
[326772643,1715344241976,-1604.42251402,0.000259,7]
[326772644,1715344241989,-17971.81210761,0.000259,7]
[326772652,1715344242826,-443.6070534,0.00019451,2]
[326772653,1715344242837,-436.35498633,0.00020539,2]
[326772654,1715344242847,-1324.29662438,0.000259,7]
[326772655,1715344242859,-601.015996,0.000259,7]
[326772656,1715344242870,-346.11167018,0.000259,7]
[326772657,1715344242883,-288.10279268,0.000259,7]
[326772658,1715344242905,-243526.69016377,0.000259,7]
[326772659,1715344242915,-155.56872017,0.000259,2]
[326772660,1715344242925,-1000.0,0.00026,5]
[326772661,1715344242935,-1000.0,0.00026,5]
[326772662,1715344242944,-1000.0,0.00026,5]
[326772663,1715344242954,-1000.0,0.00026,5]
[326772664,1715344242963,-1000.0,0.00026,2]
[326772665,1715344242973,-151.62760495,0.00026025,3]
[326772666,1715344242983,-303.64,0.00026027,2]
[326772667,1715344242993,-369.0,0.00026164,2]
[326772668,1715344243002,-163.69417388,0.00026164,2]
[326772669,1715344243011,-178.37516632,0.00026283,2]
[326772670,1715344243021,-150.0,0.00026404,2]
[326772671,1715344243031,-156.43559606,0.00026462,2]
[326772672,1715344243041,-12641.25830243,0.000265,2]
[326772673,1715344243051,-1000.0,0.000265,2]
[326772674,1715344243061,-150.69943881,0.00026522,2]
[326772675,1715344243070,-178.37516632,0.00026562,2]
[326772676,1715344243080,-155.05417632,0.00026608,2]
[326772677,1715344243089,-178.37516632,0.00026629,2]
[326772678,1715344243099,-499.68290399,0.00026644,2]
[326772679,1715344243108,-892.0,0.000267,2]
[326772680,1715344243118,-261.4,0.000267,2]
[326772681,1715344243128,-353.0,0.000267,2]
[326772682,1715344243138,-1000.0,0.000267,2]
[326772683,1715344243147,-7500.0,0.00026749,2]
[326772684,1715344243157,-1009.281128,0.000268,2]
[326772685,1715344243167,-1086.72945944,0.00026849,2]
[326772686,1715344243177,-1073.66607539,0.00026849,2]
[326772687,1715344243186,-8829.39413355,0.0002688,2]
[326772690,1715344243633,-821.74174215,0.0002688,2]
[326772691,1715344243643,-170.0,0.00026911,120]
[326772692,1715344243653,-200.0,0.0002698,2]
[326772693,1715344243663,-28682.6228414,0.0002698,2]
[326772694,1715344243696,-1578.20000001,0.0002698,2]
[326772695,1715344243713,-839.10109103,0.0002698,2]
[326772701,1715344247277,-1083.18228854,0.0002644,2]
[326772702,1715344247287,-4607.34867829,0.0002698,2]
[326772703,1715344247299,-458.11552598,0.0002698,2]
[326772704,1715344247311,-442.78558222,0.0002698,2]
[326772729,1715345432599,-607.40951265,0.00012556,2]
[326772730,1715345432610,-599.46000008,0.00012556,2]
[326772731,1715345432621,-6.21595274,0.00012556,2]
[326772732,1715345432631,-522.15446452,0.00012557,2]
[326772733,1715345432640,-1169.64513,0.00012558,2]
[326772734,1715345432649,-217.14907971,0.0001262,2]
[326772735,1715345432658,-248.62811859,0.00012623,2]
[326772736,1715345432667,-109.53976411,0.00012999,2]
[326772737,1715345432680,-6355.56267634,0.00012999,2]
[326772738,1715345432691,-1054.71998718,0.00012999,2]
[326772739,1715345432718,-545.79069227,0.00012999,2]
[326772740,1715345432729,-1270.46827519,0.00012999,2]
[326772741,1715345432762,-812.64718925,0.00012999,2]
[326772742,1715345432773,-837.82808505,0.00012999,2]
[326772743,1715345432784,-550.67700589,0.00012999,2]
[326772744,1715345432795,-790.66976645,0.00012999,2]
[326772745,1715345432805,-477.33023355,0.00013,2]
[326772746,1715345432818,-1037.91098845,0.00013,2]
[326772747,1715345432844,-665.99242083,0.00013,2]
[326772748,1715345432862,-23022.37049775,0.00013,2]
[326772771,1715345438326,-2629.65158858,0.00013,2]
[326772772,1715345438380,-370.96436731,0.00013,2]
[326772773,1715345438393,-479.74318027,0.00013,2]
[326772774,1715345438404,-33463.25318316,0.00013,2]
[326772810,1715345443047,-21008.91112414,0.00013,2]
[326772813,1715345443059,-33465.72304898,0.00013,2]
[326772841,1715345443282,-289.49430853,0.00013,2]
[326772873,1715345443578,-9916.70863231,0.00013,2]
[326772875,1715345443589,-9403.39206337,0.00013,2]
[326772915,1715345446039,-524.63567098,0.00013,2]
[326772920,1715345446111,-153224.05157154,0.00013,2]
[326772921,1715345446124,-3285.756,0.00013,2]
[326772922,1715345446136,-2207.23215483,0.00013,2]
[326772923,1715345446405,-378.25350976,0.00012999,2]
[326772924,1715345446417,-833.81634732,0.00012999,2]
[326772925,1715345446426,-526.50899591,0.00013,2]
[326772935,1715345469874,-200.0,0.000127,4]
[326772941,1715345549616,-2429.65158858,0.000127,2]
[326772944,1715345850668,10000.0,0.00025,120]
[326772945,1715345868584,10000.0,0.00025,120]
[326772947,1715345957838,10000.0,0.00025,120]
[326772948,1715345978767,10000.0,0.00025,120]
[326772949,1715346001400,7194.87170532,0.00025,120]
[326772950,1715346001450,2805.12829468,0.00025,120]
[326772951,1715346028413,6919.0,0.00025,120]
[326772965,1715346632109,-515.72707236,0.00012516,2]
[326772966,1715346632118,-82.38343732,0.00012517,2]
[326772967,1715346632369,-134.76564239,0.00012517,2]
[326772968,1715346632378,-155.60564957,0.00012518,2]
[326772969,1715346632388,-30.21969726,0.00012616,2]
[326772970,1715346632399,-950.0,0.00012616,2]
[326772971,1715346632519,-1302.24553177,0.00012616,2]
[326772972,1715346632677,-82.07885063,0.00012616,2]
[326772974,1715346632687,-155.60564957,0.00012645,2]
[326772976,1715346632696,-346.8054998,0.0001271,2]
[326772979,1715346632707,-29.77992325,0.0001271,2]
[326772981,1715346632716,-155.60564957,0.00012773,2]
[326772983,1715346632725,-84.8863732,0.00012897,2]
[326773043,1715346638389,-65.1136268,0.00012897,2]
[326773044,1715346638399,-1470.06057891,0.00012898,2]
[326773045,1715346638410,-2926.83365901,0.00012898,2]
[326773046,1715346638420,-1062.48242938,0.00012898,2]
[326773047,1715346638430,-162.37534588,0.00012898,2]
[326773048,1715346638439,-622.67874461,0.00012898,2]
[326773049,1715346638449,-441.62982112,0.000129,2]
[326773050,1715346638501,-6505.17867888,0.000129,2]
[326773051,1715346638511,-27294.82132006,0.000129,2]
[326773064,1715346640272,-3075.63685048,0.000129,2]
[326773067,1715346640284,-2222.0873454,0.000129,2]
[326773068,1715346641043,-488.2002469,0.000129,2]
[326773069,1715346642341,-2902.90000068,0.000129,2]
[326773088,1715346643538,-409.11375901,0.000129,2]
[326773109,1715346646226,-216.99151539,0.00012899,2]
[326773111,1715346646237,-338.38601848,0.000129,2]
[326773123,1715346646545,-15575.21412699,0.000129,2]
[326773135,1715346666707,-1470.06057891,0.00012348,7]
[326773136,1715346727694,-2011.0,0.00012348,7]
[326773138,1715347215832,150.0,0.00011643,2]
[326773139,1715347215855,50.44417892,0.00011643,2]
[326773140,1715347292520,150.0,0.00011643,2]
[326773141,1715347292544,150.0,0.00011643,2]
[326773142,1715347292565,150.0,0.00011643,2]
[326773143,1715347292587,150.0,0.00011643,2]
[326773144,1715347292608,150.0,0.00011643,2]
[326773145,1715347292629,150.0,0.00011643,2]
[326773146,1715347292651,150.0,0.00011643,2]
[326773147,1715347292672,150.0,0.00011643,2]
[326773148,1715347292693,150.0,0.00011643,2]
[326773149,1715347292715,150.0,0.00011643,2]
[326773150,1715347292735,150.0,0.00011643,2]
[326773151,1715347292756,150.0,0.00011643,2]
[326773152,1715347292777,150.0,0.00011643,2]
[326773153,1715347292796,150.0,0.00011643,2]
[326773154,1715347292819,150.0,0.00011643,2]
[326773155,1715347292839,150.0,0.00011643,2]
[326773156,1715347292860,294.4474837,0.00011643,2]
[326773157,1715347292884,36082.00092149,0.00011643,2]
[326773158,1715347306496,20202.52961911,0.00011643,2]
[326773159,1715347329427,20202.52961911,0.00011643,2]
[326773160,1715347344760,20202.52961911,0.00011643,2]
[326773161,1715347361979,20202.52961911,0.00011643,2]
[326773162,1715347378919,20202.52961911,0.00011643,2]
[326773163,1715347398520,20202.52961911,0.00011643,2]
[326773164,1715347416546,20202.52961911,0.00011643,2]
[326773165,1715347434515,20202.52961911,0.00011643,2]
[326773166,1715347456517,20202.52961911,0.00011643,2]
[326773167,1715347474514,20202.52961911,0.00011643,2]
[326773168,1715347492517,7812.51772181,0.00011643,2]
[326773169,1715347535155,298.56741175,0.00011643,2]
[326773182,1715347708514,-522.15446452,0.00011768,2]
[326773183,1715347708535,-788.69267776,0.00011768,2]
[326773184,1715347708555,-515.72707236,0.00011769,2]
[326773185,1715347708577,-155.0,0.00011769,2]
[326773186,1715347708598,-2360.00358447,0.00011769,2]
[326773187,1715347708620,-6756.42220089,0.0001177,2]
[326773208,1715347832547,-525.09249059,0.00011765,2]
[326773209,1715347832556,-537.9880232,0.00011766,2]
[326773210,1715347832626,-1161.12367041,0.00011768,2]
[326773211,1715347832636,-528.15150967,0.00011768,2]
[326773212,1715347832646,-401.30921672,0.00011768,2]
[326773213,1715347832655,-445.77946446,0.00011768,2]
[326773214,1715347832664,-155.0,0.00011768,2]
[326773215,1715347832673,-239.37017079,0.00011769,2]
[326773216,1715347832683,-1533.68537916,0.0001177,2]
[326773217,1715347832694,-637.7,0.0001177,2]
[326773218,1715347832706,-131428.30070204,0.0001177,2]
[326773223,1715347832763,-10350.36009713,0.0001177,2]
[326773226,1715347832774,-600.0,0.0001177,2]
[326773228,1715347832786,-2708.4,0.0001177,2]
[326773231,1715347832801,-452.0960125,0.0001177,2]
[326773233,1715347832812,-300.33,0.0001177,2]
[326773234,1715347832823,-451.99230035,0.0001177,2]
[326773235,1715347832837,-305.55462111,0.0001177,2]
[326773241,1715347838546,-11301.2186397,0.0001177,2]
[326773242,1715347838555,-18113.47738026,0.00011771,2]
[326773243,1715347838566,-5776.52261974,0.00011771,2]
[326773244,1715347838576,-250.0,0.00011827,2]
[326773245,1715347838585,-155.60564957,0.00011856,2]
[326773246,1715347838596,-865.6,0.00011957,2]
[326773247,1715347838604,-1000.0,0.00012,2]
[326773248,1715347838613,-250.0,0.00012077,2]
[326773249,1715347838622,-1962.95730705,0.00012331,2]
[326773250,1715347838632,-5708.65018125,0.00012348,7]
[326773251,1715347838642,-165.44,0.00012543,2]
[326773252,1715347838651,-499.99,0.00012543,2]
[326773253,1715347838660,-1561.86172371,0.00012653,2]
[326773254,1715347838669,-200.0,0.000127,4]
[326773255,1715347838678,-1000.0,0.000128,2]
[326773256,1715347838688,-500.0,0.000128,4]
[326773257,1715347838697,-3500.94133622,0.0001282,2]
[326773258,1715347838706,-328.73,0.00012888,2]
[326773259,1715347838715,-521.44200375,0.00012897,2]
[326773260,1715347838724,-530.67518187,0.00012897,2]
[326773261,1715347838734,-156.26918012,0.00012897,2]
[326773262,1715347838743,-150.0,0.00012897,2]
[326773263,1715347838752,-1049.44852998,0.00012898,2]
[326773264,1715347838761,-2369.5981,0.00012898,2]
[326773265,1715347838771,-100000.0,0.00012898,2]
[326773266,1715347838780,-155.0001,0.000129,2]
[326773267,1715347838789,-15143.8591,0.000129,2]
[326773268,1715347838798,-700.0,0.000129,4]
[326773269,1715347838807,-798.60204,0.000129,2]
[326773270,1715347838816,-179.0,0.00012936,2]
[326773272,1715347838825,-156.02869599,0.00012944,2]
[326773274,1715347838834,-200.20871114,0.00012944,2]
[326773276,1715347838844,-8960.44465935,0.00012955,2]
[326773278,1715347838853,-328.73,0.0001299,2]
[326773280,1715347838862,-328.73,0.0001299,2]
[326773282,1715347838871,-328.73,0.0001299,2]
[326773284,1715347838879,-328.73,0.0001299,2]
[326773286,1715347838888,-328.73,0.0001299,2]
[326773288,1715347838897,-328.73,0.0001299,2]
[326773290,1715347838906,-328.73,0.0001299,2]
[326773292,1715347838916,-328.73,0.0001299,2]
[326773294,1715347838925,-328.73,0.0001299,2]
[326773296,1715347838934,-6997.31823164,0.00012998,2]
[326773298,1715347838944,-1062.48242938,0.00012998,2]
[326773300,1715347838952,-208.17791052,0.00012998,2]
[326773302,1715347838961,-711.54040194,0.00012998,2]
[326773304,1715347838971,-171.07280628,0.00012998,2]
[326773306,1715347838980,-263.06023858,0.00012998,2]
[326773308,1715347838991,-155.43808486,0.00012998,2]
[326773310,1715347839000,-200.98467897,0.00012998,2]
[326773326,1715347839154,-246.85402242,0.00012998,2]
[326773328,1715347839165,-155.0,0.00012998,2]
[326773330,1715347839175,-371.1948287,0.00012998,2]
[326773332,1715347839185,-2383.17623775,0.00012998,2]
[326773334,1715347839195,-661.481928,0.00012998,2]
[326773336,1715347839205,-240.31588424,0.00012998,2]
[326773338,1715347839215,-327.24491788,0.00012998,2]
[326773340,1715347839225,-155.0,0.00012998,2]
[326773342,1715347839235,-155.0,0.00012998,2]
[326773345,1715347839245,-156.15078988,0.00012998,2]
[326773347,1715347839255,-194.03200479,0.00012998,2]
[326773348,1715347839267,-377.0367828,0.00012998,2]
[326773350,1715347839276,-351.2829076,0.00012998,2]
[326773353,1715347839287,-235.99815367,0.00012998,2]
[326773354,1715347839297,-193.07568298,0.00012998,2]
[326773356,1715347839306,-291.29450844,0.00012998,2]
[326773358,1715347839316,-317.01746459,0.00012998,2]
[326773360,1715347839326,-3042.76872809,0.00012998,2]
[326773362,1715347839336,-190.62573975,0.00012998,2]
[326773364,1715347839348,-1051.95970687,0.00012998,2]
[326773366,1715347839358,-295.61070159,0.00012998,2]
[326773368,1715347839369,-155.95094335,0.00012998,2]
[326773370,1715347839379,-178.58914629,0.00012998,2]
[326773372,1715347839389,-1470.06057891,0.00012998,2]
[326773374,1715347839399,-155.0,0.00012998,2]
[326773376,1715347839410,-343.95475102,0.00012998,2]
[326773378,1715347839420,-2453.1914989,0.00012999,2]
[326773380,1715347839431,-1021.6383433,0.00012999,3]
[326773382,1715347839441,-1021.6383433,0.00012999,3]
[326773384,1715347839451,-124490.55265281,0.00013,2]
[326773387,1715347839465,-3118.3,0.00013,2]
[326773389,1715347839477,-535.5224417,0.00013,2]
[326773393,1715347839515,-477.20317085,0.00013,2]
[326773395,1715347839527,-306.33871259,0.00013,2]
[326773397,1715347839540,-1894.14,0.00013,2]
[326773398,1715347839773,-959.72230279,0.00013,2]
[326773399,1715347840598,-712.54449098,0.00013,2]
[326773401,1715347841409,-117000.0,0.00013,2]
[326773402,1715347841422,-2707.93359867,0.00013,2]
[326773412,1715347841943,-43242.74828199,0.00013,2]
[326773415,1715347841957,-818.03842971,0.00013,2]
[326773417,1715347841969,-64012.00000001,0.00013,2]
[326773419,1715347841984,-561.9947194,0.00013,2]
[326773421,1715347841997,-1555.00345,0.00013,2]
[326773423,1715347842009,-1292.71145,0.00013,2]
[326773448,1715347843690,-3522.75977436,0.00013,2]
[326773451,1715347843701,-31537.61000001,0.00013,2]
[326773461,1715347843781,-314.35166881,0.00013,2]
[326773462,1715347843793,-374.98529176,0.00013,2]
[326773463,1715347843804,-650.65,0.00013,2]
[326773464,1715347843912,-594.62898012,0.00013,2]
[326773465,1715347844031,-455.18525607,0.00013,2]
[326773466,1715347844273,-622.9468,0.00013,2]
[326773467,1715347844286,-293.774,0.00013,2]
[326773486,1715347848570,-510.898,0.00012999,2]
[326773487,1715347848582,-134.38079744,0.00012999,2]
[326773488,1715347848591,-1430.14200256,0.00013,2]
[326773489,1715347848661,-959.60639431,0.00013,2]
[326773490,1715347848672,-639.91342,0.00013,2]
[326773491,1715347848683,-6202.00000001,0.00013,2]
[326773492,1715347848756,-4033.272,0.00013,2]
[326773493,1715347848767,-4735.43486965,0.00013,2]
[326773494,1715347848779,-6647.48248,0.00013,2]
[326773495,1715347848790,-4973.7,0.00013,2]
[326773496,1715347848801,-6298.7,0.00013,2]
[326773497,1715347848847,-599.27979208,0.00013,2]
[326773498,1715347848859,-822.26100795,0.00013,2]
[326773504,1715347855474,-324.0546186,0.0001177,2]
[326773506,1715347896200,150.0,0.00011671,2]
[326773507,1715347896225,150.0,0.00011671,2]
[326773508,1715347896247,150.0,0.00011671,2]
[326773509,1715347896271,246.00596031,0.00011671,2]
[326773510,1715347896294,99303.99403969,0.00011671,2]
[326773511,1715347910406,-444.4474837,0.0001177,2]
[326773512,1715347917410,150.0,0.00011668,2]
[326773513,1715347917434,226.3385,0.00011668,2]
[326773515,1715347929580,-650.44417892,0.0001177,2]
[326773518,1715348101796,159.62068074,0.0001167,2]
[326773521,1715348379302,234.03,0.00011673,2]
[326773524,1715348600524,390.23,0.00011643,2]
[326773526,1715348703537,499777.24994924,0.00011643,2]
[326773527,1715348742295,178.45,0.00011528,2]
[326773528,1715348773870,250.0,0.00011381,2]
[326773530,1715348795309,200.44417892,0.00011324,2]
[326773531,1715348813639,10300.66,0.00011424,2]
[326773532,1715348883760,200.0,0.00011452,2]
[326773533,1715348904495,155.68,0.00011443,2]
[326773535,1715348965362,643.69,0.00011549,2]
[326773536,1715348996816,307.52,0.00011457,2]
[326773537,1715349029083,250.0,0.00011456,2]
[326773538,1715349031799,-155.0,0.00011732,2]
[326773539,1715349031809,-155.0,0.00011732,2]
[326773540,1715349031818,-155.0,0.00011733,2]
[326773541,1715349031831,-344.0450991,0.00011734,2]
[326773542,1715349031841,-938.51314323,0.00011735,2]
[326773543,1715349031851,-445.51429861,0.00011743,2]
[326773544,1715349031863,-89.51184562,0.00011743,2]
[326773545,1715349031874,-150.0,0.00011746,2]
[326773546,1715349031884,-825.20599389,0.00011747,2]
[326773547,1715349031896,-283.63500843,0.00011747,2]
[326773548,1715349031923,-253.083484,0.00011747,2]
[326773549,1715349031935,-1335.28216049,0.00011747,2]
[326773550,1715349031946,-31020.17326216,0.00011747,2]
[326773551,1715349032057,-1608.78187846,0.00011747,2]
[326773552,1715349032067,-692.48,0.0001175,2]
[326773553,1715349032077,-786.65448228,0.00011769,2]
[326773554,1715349032087,-173.26212603,0.0001177,2]
[326773555,1715349032096,-552.51710523,0.000118,2]
[326773556,1715349032108,-998.01959775,0.000118,2]
[326773557,1715349032117,-170.0,0.0001183,2]
[326773558,1715349032129,-159.62068072,0.00011875,2]
[326773559,1715349032138,-159.62068072,0.0001208,2]
[326773560,1715349032147,-961.2092523,0.00012158,2]
[326773561,1715349032156,-159.62068072,0.00012285,2]
[326773562,1715349032165,-441.0827472,0.00012346,2]
[326773563,1715349032174,-1505.25631873,0.00012347,7]
[326773564,1715349032183,-499.99,0.00012347,2]
[326773565,1715349032193,-168.12,0.00012408,2]
[326773566,1715349032202,-159.62068072,0.0001249,2]
[326773567,1715349032212,-7704.69046311,0.0001267,2]
[326773568,1715349032221,-159.62068072,0.00012695,2]
[326773569,1715349032230,-1000.0,0.000127,2]
[326773570,1715349032240,-610.4073,0.000127,2]
[326773571,1715349032249,-217.38778337,0.00012798,2]
[326773572,1715349032258,-186.68792669,0.00012798,2]
[326773573,1715349032267,-212.48540168,0.00012798,2]
[326773574,1715349032277,-228.36493802,0.00012798,2]
[326773575,1715349032286,-155.0,0.00012798,2]
[326773576,1715349032295,-217.41685629,0.00012798,2]
[326773577,1715349032305,-749.70613701,0.00012798,2]
[326773578,1715349032314,-190.0,0.00012798,2]
[326773579,1715349032324,-189.86508504,0.00012798,2]
[326773580,1715349032333,-159.60438437,0.00012799,2]
[326773581,1715349032343,-1137.98240148,0.00012799,2]
[326773582,1715349032353,-2360.978722,0.00012799,2]
[326773583,1715349032362,-157.30304109,0.00012799,2]
[326773584,1715349032372,-1561.86172371,0.00012799,2]
[326773585,1715349032382,-1885.0965,0.000128,2]
[326773586,1715349032392,-32040.10743004,0.000128,2]
[326773609,1715349037732,-137166.34636996,0.000128,2]
[326773610,1715349037742,-314.24374332,0.000128,2]
[326773611,1715349037755,-3502.08126514,0.00012855,2]
[326773612,1715349037765,-35158.64746981,0.0001287,2]
[326773613,1715349037774,-1020.7036,0.0001287,2]
[326773614,1715349037783,-307.52,0.00012889,2]
[326773615,1715349037792,-1021.63834331,0.00012899,3]
[326773616,1715349037803,-164629.3906,0.000129,2]
[326773617,1715349037812,-500.0,0.000129,2]
[326773618,1715349037821,-13858.7359,0.000129,2]
[326773619,1715349037832,-674.3265,0.000129,2]
[326773620,1715349037841,-159.62068072,0.000129,2]
[326773621,1715349037850,-156.02869598,0.000129,2]
[326773622,1715349037860,-167.04192647,0.000129,2]
[326773623,1715349037869,-174.97356151,0.000129,2]
[326773624,1715349037879,-650.4249704,0.000129,2]
[326773625,1715349037888,-583.83310749,0.000129,2]
[326773626,1715349037897,-11375.63985956,0.000129,2]
[326773627,1715349037907,-151.52751081,0.000129,2]
[326773628,1715349037916,-886.20124502,0.000129,2]
[326773629,1715349037925,-563.31233192,0.000129,2]
[326773630,1715349037935,-210.0,0.00012921,2]
[326773631,1715349037944,-151.54,0.0001299,2]
[326773632,1715349037953,-151.54,0.0001299,2]
[326773633,1715349037962,-151.54,0.0001299,2]
[326773634,1715349037971,-151.54,0.0001299,2]
[326773635,1715349037981,-563.11568634,0.00012998,2]
[326773636,1715349037990,-926.78368675,0.00012998,2]
[326773637,1715349037999,-2029.81619606,0.00012998,2]
[326773638,1715349038009,-2210.05511976,0.00012998,2]
[326773639,1715349038018,-1000.0,0.00012999,2]
[326773640,1715349038027,-265.636918,0.00012999,2]